bitfinex-derivatives/quotes_BTCF0:USTF0_20251108
["timestamp","ask_amount","ask_price","bid_price","bid_amount"]
[1762603564490,0.58484211,102070.0,102060.0,0.00014702]
[1762603564697,0.58584211,102070.0,102060.0,0.00014702]
[1762603565004,0.58584211,102070.0,102060.0,0.04274702]
[1762603565504,0.58584211,102070.0,102060.0,0.02144702]
[1762603566098,0.58684211,102070.0,102060.0,0.02144702]
[1762603566303,0.22604211,102070.0,102060.0,0.14078252]
[1762603569092,0.20860632,102070.0,102060.0,0.14078252]
[1762603569293,0.1565359,102070.0,102060.0,0.14078252]
[1762603570099,0.1565359,102070.0,102060.0,0.04274702]
[1762603570497,0.1565359,102070.0,102060.0,0.02144702]
[1762603570498,0.5163359,102070.0,102060.0,0.02144702]
[1762603570698,0.56740632,102070.0,102060.0,0.02144702]
[1762603570896,0.56740632,102070.0,102060.0,0.00014702]
[1762603571201,0.58484211,102070.0,102060.0,0.00014702]
[1762603572203,0.58684211,102070.0,102060.0,0.00014702]
[1762603574095,0.58684211,102070.0,102060.0,0.14078252]
[1762603574394,0.55205168,102070.0,102060.0,0.14078252]
[1762603575802,0.55205168,102070.0,102060.0,0.00014702]
[1762603576304,0.55205168,102070.0,102060.0,0.09818252]
[1762603576500,0.55205168,102070.0,102060.0,0.14078252]
[1762603577506,0.55205168,102070.0,102060.0,0.09818252]
[1762603578313,0.56940386,102070.0,102060.0,0.00014702]
[1762603578605,0.58684211,102070.0,102060.0,0.00014702]
[1762603578794,0.58684211,102070.0,102060.0,0.09818252]
[1762603579995,0.58684211,102070.0,102060.0,0.11948252]
[1762603581101,0.58684211,102070.0,102060.0,0.02144702]
[1762603581293,0.58684211,102070.0,102060.0,0.09818252]
[1762603581898,0.58684211,102070.0,102060.0,0.11948252]
[1762603582098,0.58484211,102070.0,102060.0,0.11948252]
[1762603583205,0.58484211,102070.0,102060.0,0.00014702]
[1762603583805,0.58584211,102070.0,102060.0,0.00014702]
[1762603584204,0.5163359,102070.0,102060.0,0.00014702]
[1762603584809,0.58593968,102070.0,102060.0,0.00014702]
[1762603585215,0.1539351,102050.0,102040.0,0.1406479]
[1762603585509,0.20616382,102050.0,102040.0,0.1406479]
[1762603586201,0.56696382,102050.0,102040.0,0.1406479]
[1762603586401,0.58437339,102050.0,102040.0,0.2454875]
[1762603586597,0.58437339,102050.0,102040.0,0.2474875]
[1762603587002,0.58437339,102050.0,102040.0,0.003]
[1762603587203,0.68821299,102050.0,102040.0,0.003]
[1762603587602,0.68821299,102050.0,102040.0,0.001]
[1762603588106,0.68821299,102050.0,102040.0,0.0990547]
[1762603588304,0.58437339,102050.0,102040.0,0.001]
[1762603588499,0.0980547,102040.0,102030.0,0.20204272]
[1762603588703,0.22358299,102040.0,102030.0,0.20204272]
[1762603588901,0.22358299,102040.0,102030.0,0.24494272]
[1762603589105,0.1539447,102040.0,102030.0,0.24494272]
[1762603589411,0.10807093,102040.0,102030.0,0.24494272]
[1762603589911,0.10807093,102040.0,102030.0,0.24694272]
[1762603590309,0.20612563,102040.0,102030.0,0.14410312]
[1762603590516,0.20612563,102040.0,102030.0,0.24794272]
[1762603590710,0.10807093,102040.0,102030.0,0.24794272]
[1762603591612,0.14284689,102040.0,102030.0,0.60874272]
[1762603592615,0.07798596,102040.0,102030.0,0.71258232]
[1762603593611,0.03477596,102040.0,102030.0,1.31258232]
[1762603593814,0.03477596,102050.0,102040.0,0.1516047]
[1762603594010,0.03477596,102050.0,102040.0,0.6162443]
[1762603595621,0.1967408,102060.0,102050.0,0.1409451]
[1762603595914,0.1967408,102060.0,102050.0,0.6055847]
[1762603596223,0.2947763,102060.0,102050.0,0.6055847]
[1762603597125,0.2947763,102060.0,102050.0,0.6075847]
[1762603597918,0.1977408,102060.0,102050.0,0.6075847]
[1762603598126,0.2957763,102060.0,102050.0,0.6075847]
[1762603598618,0.2947763,102060.0,102050.0,0.6075847]
[1762603598819,0.2947763,102060.0,102050.0,0.6085847]
[1762603599424,0.1967408,102060.0,102050.0,0.6085847]
[1762603603828,0.14455987,102060.0,102050.0,0.6085847]
[1762603604331,0.10978391,102060.0,102050.0,0.6085847]
[1762603604718,0.05603702,102060.0,102050.0,0.6085847]
[1762603604915,0.00014702,102060.0,102050.0,0.9573843]
[1762603605119,0.03477596,102070.0,102060.0,0.1515855]
[1762603605420,0.03477596,102070.0,102060.0,0.7200647]
[1762603606425,0.19905863,102080.0,102070.0,0.1406259]
[1762603606632,0.19905863,102080.0,102070.0,0.5014259]
[1762603606827,0.1468777,102080.0,102070.0,0.6052655]
[1762603607722,0.1468777,102080.0,102070.0,0.5014259]
[1762603607928,0.1468777,102080.0,102070.0,0.6052655]
[1762603609529,0.19905863,102080.0,102070.0,0.6052655]
[1762603612428,0.0887577,102080.0,102070.0,0.6052655]
[1762603613024,0.05398174,102080.0,102070.0,0.6052655]
[1762603613233,0.36862645,102090.0,102080.0,0.1406163]
[1762603613234,0.16232017,102090.0,102080.0,0.1406163]
[1762603613534,0.16232017,102090.0,102080.0,0.6052559]
[1762603613729,0.05201924,102090.0,102080.0,0.7197455]
[1762603614034,0.01724328,102090.0,102080.0,0.7197455]
[1762603614233,0.12322689,102100.0,102090.0,0.1406067]
[1762603614436,0.07104596,102100.0,102090.0,0.7090859]
[1762603614624,0.09317596,102100.0,102090.0,0.7090859]
[1762603615327,0.03477596,102100.0,102090.0,0.7090859]
[1762603615730,0.05273367,102100.0,102090.0,0.7090859]
[1762603616137,0.05373367,102100.0,102090.0,0.7090859]
[1762603617035,0.002,102100.0,102090.0,0.7090859]
[1762603617229,0.45366596,102120.0,102110.0,0.0386]
[1762603617428,0.55164386,102120.0,102110.0,0.1424396]
[1762603617623,0.56905714,102120.0,102110.0,0.1424396]
[1762603618328,0.47107924,102120.0,102110.0,0.2404271]
[1762603618529,0.47307924,102120.0,102110.0,0.2404271]
[1762603618837,0.47607924,102120.0,102110.0,0.2404271]
[1762603619029,0.11527924,102120.0,102110.0,0.2404271]
[1762603619228,0.11527924,102120.0,102110.0,0.6012271]
[1762603620030,0.21325714,102120.0,102110.0,0.3994]
[1762603620230,0.11527924,102120.0,102110.0,0.6012271]
[1762603620826,0.11527924,102120.0,102110.0,0.4839396]
[1762603621034,0.1567275,102110.0,102100.0,0.46478662]
[1762603621232,0.55230346,102110.0,102100.0,0.10398662]
[1762603621432,1.16970843,102110.0,102100.0,0.00014702]
[1762603621733,1.16970843,102110.0,102090.0,0.1038396]
[1762603621734,0.1567371,102100.0,102090.0,0.1038396]
[1762603621923,0.60419148,102100.0,102090.0,0.1038396]
[1762603622129,0.1567467,102090.0,102080.0,0.4782662]
[1762603622329,0.09340175,102090.0,102080.0,0.5821058]
[1762603622630,0.09340175,102090.0,102080.0,0.6015558]
[1762603623030,0.19140845,102090.0,102080.0,0.2213058]
[1762603623343,0.05874,102080.0,102070.0,0.56281252]
[1762603623639,0.19143547,102080.0,102070.0,0.46478662]
[1762603623835,0.19143547,102080.0,102070.0,0.10398662]
[1762603624042,0.20874893,102080.0,102070.0,0.00014702]
[1762603624232,0.56954893,102080.0,102070.0,0.00014702]
[1762603625631,0.56954893,102080.0,102070.0,0.00114702]
[1762603626535,0.56954893,102080.0,102070.0,0.09917292]
[1762603627542,0.56954893,102080.0,102070.0,0.11862292]
[1762603627839,0.47153263,102080.0,102070.0,0.11862292]
[1762603628241,0.56954893,102080.0,102070.0,0.11862292]
[1762603628437,0.56954893,102080.0,102070.0,0.24834774]
[1762603628636,0.56954893,102080.0,102070.0,0.22889774]
[1762603628932,0.56954893,102080.0,102070.0,0.13087184]
[1762603629837,0.60424796,102080.0,102070.0,0.09917292]
[1762603630141,0.60424796,102080.0,102070.0,0.22889774]
[1762603630335,0.56954893,102080.0,102070.0,0.22889774]
[1762603631140,0.56954893,102080.0,102070.0,0.09917292]
[1762603631341,0.56954893,102080.0,102070.0,0.00114702]
[1762603633834,0.1116455,102070.0,102060.0,0.0980355]
[1762603634034,0.552286,102070.0,102060.0,0.0980355]
[1762603634438,0.1567755,102060.0,102050.0,0.62974272]
[1762603635829,0.05874,102060.0,102050.0,0.62974272]
[1762603636036,0.05874,102060.0,102050.0,0.63274272]
[1762603637539,0.05874,102060.0,102050.0,0.63574272]
[1762603643947,0.00014702,102070.0,102060.0,0.1392155]
[1762603644248,0.04527702,102070.0,102060.0,0.62974032]
[1762603644444,0.05888702,102070.0,102060.0,0.62974032]
[1762603644644,0.02278702,102070.0,102060.0,0.62974032]
[1762603644843,0.00014702,102070.0,102060.0,0.62974032]
[1762603645039,0.00014702,102070.0,102060.0,0.63174032]
[1762603645239,0.00014702,102070.0,102060.0,0.63274032]
[1762603645444,0.1897675,102090.0,102080.0,0.1391963]
[1762603645649,0.1897675,102090.0,102080.0,0.26892112]
[1762603646148,0.0917605,102090.0,102080.0,0.26892112]
[1762603646347,0.1897672,102090.0,102080.0,0.24866894]
[1762603647349,0.1897672,102090.0,102080.0,0.25066894]
[1762603647550,0.24175983,102090.0,102080.0,0.34868524]
[1762603647746,0.24175983,102090.0,102080.0,0.34668524]
[1762603648652,0.24175983,102090.0,102080.0,0.24866894]
[1762603649042,0.24175983,102090.0,102080.0,0.34668524]
[1762603649442,0.20704933,102090.0,102080.0,0.34668524]
[1762603650051,0.10904263,102090.0,102080.0,0.34668524]
[1762603651651,0.20704933,102090.0,102080.0,0.34668524]
[1762603651851,0.20704933,102090.0,102080.0,0.1391963]
[1762603652049,0.20704933,102090.0,102080.0,0.34668524]
[1762603652250,0.20704933,102090.0,102080.0,0.24866894]
[1762603652553,0.20704933,102090.0,102080.0,0.34668524]
[1762603653051,0.13021898,102090.0,102080.0,0.45042971]
[1762603653241,0.07822635,102090.0,102080.0,0.34668524]
[1762603653441,0.07822635,102090.0,102080.0,0.70748524]
[1762603653852,0.07822635,102090.0,102080.0,0.81122971]
[1762603654446,0.07822635,102090.0,102080.0,0.71048524]
[1762603656547,0.05707635,102090.0,102080.0,0.81422971]
[1762603656755,0.55761807,102100.0,102090.0,0.1389067]
[1762603656946,0.65561517,102100.0,102090.0,0.24265117]
[1762603657248,0.65561517,102100.0,102090.0,0.14464447]
[1762603658253,0.65561517,102100.0,102090.0,0.24265117]
[1762603658954,0.29481517,102100.0,102090.0,0.24265117]
[1762603659454,0.26002882,102100.0,102090.0,0.24265117]
[1762603660350,0.26002882,102100.0,102090.0,0.14464447]
[1762603660851,0.26002882,102100.0,102090.0,0.24265117]
[1762603663154,0.1537867,102090.0,102080.0,0.14464447]
[1762603663355,0.1405963,102080.0,102070.0,0.62901622]
[1762603663556,0.24064705,102080.0,102070.0,0.75321069]
[1762603664449,0.14263075,102080.0,102070.0,0.85695516]
[1762603666658,0.08685075,102080.0,102070.0,0.86745516]
[1762603666858,0.132626,102060.0,102050.0,0.02045]
[1762603667159,0.20592675,102060.0,102050.0,0.10374447]
[1762603667353,0.20592675,102060.0,102050.0,0.12419447]
[1762603667758,0.56672675,102060.0,102050.0,0.10374447]
[1762603667953,0.58425429,102060.0,102050.0,0.10374447]
[1762603668457,0.1538251,102050.0,102040.0,0.24284589]
[1762603668652,0.10787057,102050.0,102040.0,0.34659036]
[1762603669463,0.09050905,102050.0,102040.0,0.34659036]
[1762603669857,0.09050905,102050.0,102040.0,0.35059036]
[1762603670465,0.09050905,102050.0,102040.0,0.35459036]
[1762603671455,0.05578,102050.0,102040.0,0.35459036]
[1762603672465,0.1538251,102050.0,102040.0,0.25653596]
[1762603675071,0.1538251,102050.0,102040.0,0.35459066]
[1762603675274,0.05578,102050.0,102040.0,0.71539066]
[1762603675569,0.02119,102050.0,102040.0,0.82907513]
[1762603675871,0.02119,102050.0,102040.0,0.72533066]
[1762603676068,0.05574,102050.0,102040.0,0.72533066]
[1762603676262,0.1112364,102060.0,102050.0,0.1184951]
[1762603676471,0.1550164,102060.0,102050.0,0.70723404]
[1762603677375,0.05698,102060.0,102050.0,0.71023404]
[1762603678369,0.05698,102060.0,102050.0,0.71323404]
[1762603679071,0.1550155,102060.0,102050.0,0.71323404]
[1762603679272,0.05698,102060.0,102050.0,0.71323404]
[1762603680174,0.1550155,102060.0,102050.0,0.71323404]
[1762603681277,0.1550155,102060.0,102050.0,0.61518894]
[1762603681668,0.1550155,102060.0,102050.0,0.60948957]
[1762603682369,0.05698,102060.0,102050.0,0.71323404]
[1762603683874,0.15515512,102070.0,102060.0,0.1389355]
[1762603684077,0.15515512,102070.0,102060.0,0.34642444]
[1762603684278,0.15515512,102070.0,102060.0,0.24838894]
[1762603684476,0.18988417,102070.0,102060.0,0.24838894]
[1762603684976,0.18988417,102070.0,102060.0,0.25038894]
[1762603685588,0.18988417,102070.0,102060.0,0.34942444]
[1762603686079,0.05712702,102070.0,102060.0,0.71022444]
[1762603686274,0.00014702,102070.0,102060.0,0.72072444]
[1762603686976,0.00014702,102070.0,102060.0,0.71022444]
[1762603686977,0.15480292,102070.0,102060.0,0.71022444]
[1762603688178,0.05677702,102070.0,102060.0,0.71022444]
[1762603688673,0.00014702,102070.0,102060.0,0.82446891]
[1762603689668,0.09966962,102090.0,102070.0,0.1389259]
[1762603689879,0.09966962,102090.0,102080.0,0.70690524]
[1762603689880,0.05663,102090.0,102080.0,0.70690524]
[1762603690477,0.06965905,102090.0,102080.0,0.60313906]
[1762603690676,0.09150607,102100.0,102090.0,0.1386067]
[1762603690873,0.05677702,102100.0,102090.0,0.60312946]
[1762603691673,0.09150607,102100.0,102090.0,0.60312946]
[1762603692181,0.15477412,102100.0,102090.0,0.50512276]
[1762603692381,0.19150317,102100.0,102090.0,0.50512276]
[1762603693087,0.19150317,102100.0,102090.0,0.4014]
[1762603693284,0.19150317,102100.0,102090.0,0.14432276]
[1762603693582,0.55230317,102100.0,102090.0,0.14432276]
[1762603693778,0.19150317,102100.0,102090.0,0.14432276]
[1762603693979,0.09350607,102100.0,102090.0,0.24232946]
[1762603694283,0.00014702,102100.0,102090.0,0.70685222]
[1762603697779,0.15477412,102100.0,102090.0,0.70685222]
[1762603698380,0.05677702,102100.0,102090.0,0.70685222]
[1762603698578,0.15477412,102100.0,102090.0,0.70685222]
[1762603699584,0.15477412,102100.0,102090.0,0.60884552]
[1762603700486,0.05677702,102100.0,102090.0,0.70685222]
[1762603700682,0.15477412,102100.0,102090.0,0.60884552]
[1762603700888,0.18950317,102100.0,102090.0,0.14432276]
[1762603702085,0.18950317,102100.0,102090.0,0.0406]
[1762603702385,0.24159374,102100.0,102090.0,0.14432276]
[1762603704281,0.24159374,102100.0,102090.0,0.24232946]
[1762603704589,0.24159374,102100.0,102090.0,0.14432276]
[1762603706390,0.56766469,102100.0,102090.0,0.12402276]
[1762603706591,0.56766469,102100.0,102090.0,0.0203]
[1762603706793,0.56766469,102100.0,102080.0,0.60313896]
[1762603706794,0.1575066,102090.0,102080.0,0.60313896]
[1762603706979,0.57033713,102090.0,102080.0,0.24233896]
[1762603708389,0.57033713,102090.0,102080.0,0.12402276]
[1762603708591,0.57033713,102090.0,102070.0,0.45896762]
[1762603708592,0.1575163,102080.0,102070.0,0.49956762]
[1762603708895,0.24424826,102080.0,102070.0,0.60329038]
[1762603709379,0.0595,102080.0,102070.0,0.60329038]
[1762603709994,0.0462,102080.0,102070.0,0.60329038]
[1762603711390,0.55884556,102090.0,102080.0,0.1386163]
[1762603711391,0.09520143,102090.0,102080.0,0.1386163]
[1762603711591,0.24523866,102090.0,102080.0,0.50512276]
[1762603711889,0.60603866,102090.0,102080.0,0.12402276]
[1762603712094,0.60503866,102090.0,102080.0,0.12402276]
[1762603712294,0.60503866,102090.0,102080.0,0.14432276]
[1762603712983,0.60503866,102090.0,102080.0,0.24233906]
[1762603713482,0.60603866,102090.0,102080.0,0.24233906]
[1762603713682,0.24523866,102090.0,102080.0,0.24233906]
[1762603713887,0.24423866,102090.0,102080.0,0.24233906]
[1762603715197,0.20953723,102090.0,102080.0,0.24233906]
[1762603716598,0.20953723,102090.0,102080.0,0.14432276]
[1762603717395,0.20953723,102090.0,102080.0,0.24233906]
[1762603717796,0.20953723,102090.0,102080.0,0.14432276]
[1762603719794,0.20953723,102090.0,102080.0,0.24233906]
[1762603721595,0.11153053,102090.0,102080.0,0.24233906]
[1762603721797,0.07527053,102090.0,102080.0,0.61293906]
[1762603721997,0.09823053,102090.0,102080.0,0.61293906]
[1762603722297,0.11008015,102090.0,102080.0,0.61293906]
[1762603722503,0.03480962,102090.0,102080.0,0.71666182]
[1762603724898,0.09354664,102100.0,102090.0,0.1386067]
[1762603725102,0.09354664,102100.0,102090.0,0.70685222]
[1762603725805,0.19154374,102100.0,102090.0,0.70685222]
[1762603726005,0.09354664,102100.0,102090.0,0.60312946]
[1762603726505,0.09454664,102100.0,102090.0,0.70685222]
[1762603726804,0.19254374,102100.0,102090.0,0.70685222]
[1762603727001,0.09454664,102100.0,102090.0,0.70685222]
[1762603727204,0.09554664,102100.0,102090.0,0.70685222]
[1762603727903,0.14757717,102100.0,102090.0,0.70685222]
[1762603728504,0.24557427,102100.0,102090.0,0.70685222]
[1762603729406,0.21076465,102100.0,102090.0,0.70685222]
[1762603730611,0.21076465,102100.0,102090.0,0.4014]
[1762603730809,0.21076465,102100.0,102090.0,0.60884552]
[1762603731009,0.21076465,102100.0,102090.0,0.70685222]
[1762603731509,0.21076465,102100.0,102090.0,0.60884552]
[1762603731709,0.21076465,102100.0,102090.0,0.60312946]
[1762603732812,0.11276755,102100.0,102090.0,0.60312946]
[1762603733009,0.11176755,102100.0,102090.0,0.60312946]
[1762603733213,0.11176755,102100.0,102090.0,0.70685222]
[1762603733412,0.11076755,102100.0,102090.0,0.70685222]
[1762603734713,0.09791755,102100.0,102090.0,0.70685222]
[1762603734913,0.05217755,102100.0,102090.0,0.70685222]
[1762603735314,0.07334755,102100.0,102090.0,0.70685222]
[1762603736113,0.13009511,102100.0,102090.0,0.70685222]
[1762603736710,0.18888168,102100.0,102090.0,0.70685222]
[1762603737107,0.24091221,102100.0,102090.0,0.70685222]
[1762603737605,0.18888168,102100.0,102090.0,0.70685222]
[1762603739115,0.03499458,102100.0,102090.0,0.70685222]
[1762603739415,0.09128458,102100.0,102090.0,0.70685222]
[1762603740113,0.18928168,102100.0,102090.0,0.70685222]
[1762603740506,0.07846458,102100.0,102090.0,0.70685222]
[1762603740712,0.09128458,102100.0,102090.0,0.70685222]
[1762603741716,0.18928168,102100.0,102090.0,0.70685222]
[1762603743422,0.09128458,102100.0,102090.0,0.70685222]
[1762603746321,0.14331511,102100.0,102090.0,0.70685222]
[1762603746522,0.10846755,102100.0,102090.0,0.70685222]
[1762603749526,0.12607531,102100.0,102090.0,0.70685222]
[1762603749726,0.05643702,102100.0,102090.0,0.70685222]
[1762603751123,0.12607531,102100.0,102090.0,0.70685222]
[1762603752422,0.12607531,102100.0,102090.0,0.70682378]
[1762603753025,0.05643702,102100.0,102090.0,0.70682378]
[1762603754227,0.15443412,102100.0,102090.0,0.70682378]
[1762603754623,0.05643702,102100.0,102090.0,0.70682378]
[1762603755122,0.12607531,102100.0,102090.0,0.70682378]
[1762603755325,0.05643702,102100.0,102090.0,0.70682378]
[1762603755832,0.12607531,102100.0,102090.0,0.70682378]
[1762603759325,0.05643702,102100.0,102090.0,0.70682378]
[1762603759521,0.1088081,102100.0,102090.0,0.70682378]
[1762603761321,0.2068052,102100.0,102090.0,0.70682378]
[1762603761938,0.1088081,102100.0,102090.0,0.70682378]
[1762603763538,0.12607531,102100.0,102090.0,0.70682378]
[1762603765134,0.22407241,102100.0,102090.0,0.60881708]
[1762603765346,0.22407241,102100.0,102090.0,0.14430854]
[1762603765641,0.58487241,102100.0,102090.0,0.14430854]
[1762603767043,0.58487241,102100.0,102090.0,0.24231524]
[1762603768946,0.58487241,102100.0,102090.0,0.14430854]
[1762603769137,0.58487241,102100.0,102090.0,0.24231524]
[1762603769645,0.58487241,102100.0,102090.0,0.22201524]
[1762603769846,0.58487241,102100.0,102090.0,0.20171524]
[1762603770338,0.68858095,102100.0,102080.0,0.56251834]
[1762603770541,0.56961866,102090.0,102080.0,0.22201834]
[1762603770745,0.56961866,102090.0,102080.0,0.32572688]
[1762603771136,0.56961866,102090.0,102080.0,0.34602688]
[1762603771337,0.58689499,102090.0,102080.0,0.34602688]
[1762603779249,0.58689499,102090.0,102080.0,0.24801708]
[1762603780246,0.56952361,102090.0,102080.0,0.24801708]
[1762603781053,0.56952361,102090.0,102080.0,0.34603328]
[1762603782947,0.62285317,102090.0,102080.0,0.22771708]
[1762603783152,0.62285317,102090.0,102080.0,0.20741708]
[1762603783857,0.1553562,102080.0,102070.0,0.49956662]
[1762603784152,0.1901962,102080.0,102070.0,0.7069837]
[1762603786854,0.09218,102080.0,102070.0,0.7069837]
[1762603790065,0.14444691,102080.0,102070.0,0.7069837]
[1762603791564,0.13155691,102080.0,102070.0,0.7069837]
[1762603793555,0.10939691,102080.0,102070.0,0.7069837]
[1762603793760,0.13155691,102080.0,102070.0,0.7069837]
[1762603796375,0.13155691,102080.0,102070.0,2.7069837]
[1762603799170,0.09671691,102080.0,102070.0,2.7069837]
[1762603799370,0.1325757,102080.0,102070.0,2.7069837]
[1762603799577,0.09765691,102080.0,102070.0,2.7069837]
[1762603802787,0.09765691,102080.0,102070.0,2.7079837]
[1762603803583,0.09765691,102080.0,102070.0,2.7099837]
[1762603805677,0.09765691,102080.0,102070.0,3.0707837]
[1762603805985,0.03492384,102080.0,102070.0,3.17449224]
[1762603806283,0.03492384,102080.0,102070.0,3.0301837]
[1762603806475,0.08719075,102080.0,102070.0,3.0301837]
[1762603806673,0.03492384,102080.0,102070.0,3.0301837]
[1762603808383,0.08031384,102080.0,102070.0,3.0301837]
[1762603808979,0.13258075,102080.0,102070.0,3.0301837]
[1762603809486,0.13257293,102080.0,102070.0,3.0301837]
[1762603810175,0.05739602,102080.0,102070.0,3.0301837]
[1762603810780,0.03491602,102080.0,102070.0,3.0301837]
[1762603810980,0.03491602,102080.0,102070.0,3.13389224]
[1762603811287,0.14051249,102090.0,102080.0,0.1484162]
[1762603811490,0.14051249,102090.0,102080.0,0.82034182]
[1762603812883,0.11072558,102090.0,102080.0,0.82034182]
[1762603813488,0.08824558,102090.0,102080.0,0.82034182]
[1762603814277,0.08824558,102090.0,102080.0,0.71664562]
[1762603814483,0.08824558,102090.0,102080.0,0.71764562]
[1762603814691,0.08824558,102090.0,102080.0,0.71964562]
[1762603814891,0.14051249,102090.0,102080.0,0.71964562]
[1762603815593,0.08824558,102090.0,102080.0,0.71964562]
[1762603815990,0.05332956,102090.0,102080.0,0.71964562]
[1762603818689,0.03506304,102100.0,102090.0,0.0980466]
[1762603818895,0.03506304,102100.0,102090.0,0.70687602]
[1762603819994,0.03506304,102100.0,102090.0,0.70683602]
[1762603820196,0.08045304,102100.0,102090.0,0.70683602]
[1762603821399,0.08045304,102100.0,102090.0,0.70983602]
[1762603822193,0.09373304,102100.0,102090.0,0.70983602]
[1762603824096,0.08045304,102100.0,102090.0,0.70983602]
[1762603824796,0.03506304,102100.0,102090.0,0.70983602]
[1762603826591,0.00014702,102100.0,102090.0,0.70983602]
[1762603827191,0.03506304,102100.0,102090.0,0.70983602]
[1762603827389,0.00014702,102100.0,102090.0,0.70983602]
[1762603827788,0.03491602,102110.0,102100.0,0.149097]
[1762603827988,0.03491602,102110.0,102100.0,0.61361171]
[1762603828193,0.12618621,102120.0,102110.0,0.1385874]
[1762603828398,0.0739193,102120.0,102110.0,0.70681682]
[1762603828790,0.0523293,102120.0,102110.0,0.70681682]
[1762603828992,0.01741328,102120.0,102110.0,0.70681682]
[1762603829299,0.02159,102120.0,102110.0,0.70681682]
[1762603829892,0.02259,102120.0,102110.0,0.70681682]
[1762603830201,0.04502,102120.0,102110.0,0.70681682]
[1762603830399,0.04602,102120.0,102110.0,0.70681682]
[1762603830998,0.02359,102120.0,102110.0,0.70681682]
[1762603831196,0.01559491,102120.0,102110.0,0.70681682]
[1762603831394,0.24244183,102140.0,102130.0,0.00942]
[1762603831595,0.24244183,102140.0,102130.0,0.57190301]
[1762603832002,0.60324183,102140.0,102130.0,0.11313471]
[1762603832303,1.16832581,102140.0,102130.0,0.10371471]
[1762603832693,1.17232581,102140.0,102130.0,0.10371471]
[1762603832993,1.17632581,102140.0,102130.0,0.10371471]
[1762603833300,0.81552581,102140.0,102130.0,0.21110301]
[1762603833500,0.82896077,102140.0,102130.0,0.21110301]
[1762603833700,0.22896057,102140.0,102130.0,0.21110301]
[1762603834002,0.22896057,102140.0,102130.0,0.10371471]
[1762603834502,0.22896057,102140.0,102130.0,0.10842471]
[1762603834894,0.22896057,102140.0,102130.0,0.11313471]
[1762603835199,0.22896057,102140.0,102130.0,0.21110301]
[1762603836399,0.22896057,102140.0,102130.0,0.00942]
[1762603836601,0.1557683,102130.0,102120.0,0.00014702]
[1762603836799,0.1557683,102130.0,102110.0,0.3608]
[1762603836800,0.1557779,102120.0,102110.0,0.3608]
[1762603837000,0.24278668,102120.0,102110.0,0.20170211]
[1762603837204,0.24278668,102120.0,102110.0,0.0979874]
[1762603837403,0.1557874,102110.0,102100.0,2.0]
[1762603837601,0.60359918,102110.0,102100.0,2.20171171]
[1762603838198,0.18154911,102120.0,102110.0,1.59237562]
[1762603838395,0.22556911,102120.0,102110.0,1.59810293]
[1762603838598,0.22656911,102120.0,102110.0,1.49438822]
[1762603839199,0.22556911,102120.0,102110.0,1.49438822]
[1762603839602,0.22656911,102120.0,102110.0,1.49438822]
[1762603840001,0.22756911,102120.0,102110.0,1.49438822]
[1762603843010,0.22756311,102120.0,102110.0,1.70682033]
[1762603843214,0.22756311,102120.0,102110.0,2.06762033]
[1762603844015,0.21378311,102120.0,102110.0,2.06762033]
[1762603849009,0.04616702,102120.0,102110.0,2.06762033]
[1762603849209,0.10012482,102120.0,102110.0,2.06762033]
[1762603849416,0.00214702,102120.0,102110.0,2.06762033]
[1762603849612,0.11609531,102120.0,102110.0,2.06762033]
[1762603850718,0.00214702,102120.0,102110.0,2.06762033]
[1762603850912,0.00214702,102120.0,102110.0,2.17133504]
[1762603851310,0.00214702,102120.0,102110.0,2.06762033]
[1762603851911,0.00014702,102120.0,102110.0,2.06762033]
[1762603852112,0.12073482,102120.0,102110.0,2.06862033]
[1762603852322,0.02275702,102120.0,102110.0,2.06862033]
[1762603852618,0.14243492,102120.0,102110.0,2.06862033]
[1762603854018,0.14243492,102120.0,102110.0,1.86691822]
[1762603854224,0.14243492,102120.0,102110.0,1.97063293]
[1762603855020,0.14243492,102120.0,102110.0,2.06862033]
[1762603855924,0.04445702,102120.0,102110.0,2.06862033]
[1762603856422,0.14243482,102120.0,102110.0,2.06862033]
[1762603856620,0.00014702,102120.0,102110.0,2.06862033]
[1762603856821,0.00014702,102120.0,102110.0,2.17233504]
[1762603857018,0.00014702,102120.0,102110.0,2.06862033]
[1762603857615,0.22600885,102140.0,102130.0,0.05223]
[1762603857821,0.22600885,102140.0,102130.0,0.51674471]
[1762603858219,0.23915885,102140.0,102130.0,0.51674471]
[1762603858722,0.24115885,102140.0,102130.0,0.61471301]
[1762603859219,0.24315885,102140.0,102130.0,0.51674471]
[1762603859720,0.24315885,102140.0,102130.0,0.60696301]
[1762603860323,0.24315885,102140.0,102130.0,0.50899471]
[1762603860720,0.24315885,102140.0,102130.0,0.60696301]
[1762603860917,0.08707325,102140.0,102130.0,0.98118301]
[1762603861120,0.02974124,102140.0,102130.0,0.98118301]
[1762603861328,0.22569789,102160.0,102150.0,0.0979491]
[1762603861526,0.22569789,102160.0,102150.0,0.56246381]
[1762603862124,0.02283,102150.0,102140.0,0.36094702]
[1762603862422,0.5168691,102150.0,102140.0,0.00014702]
[1762603862821,0.60507849,102150.0,102140.0,0.00014702]
[1762603864334,0.60707849,102150.0,102140.0,0.00014702]
[1762603864522,0.60907849,102150.0,102140.0,0.00014702]
[1762603869326,0.24827849,102150.0,102140.0,0.00014702]
[1762603870437,0.24827849,102150.0,102140.0,0.09810572]
[1762603870635,0.24827849,102150.0,102140.0,0.00014702]
[1762603870636,0.22980964,102150.0,102140.0,0.00014702]
[1762603871028,0.22980964,102150.0,102140.0,0.09810572]
[1762603874138,0.22980964,102150.0,102140.0,0.00014702]
[1762603874338,0.26372682,102150.0,102140.0,0.10380474]
[1762603874634,0.35193621,102150.0,102140.0,0.10380474]
[1762603875532,0.35193621,102150.0,102140.0,1.59819296]
[1762603875734,0.35193621,102150.0,102140.0,1.49453524]
[1762603875934,0.35193621,102150.0,102140.0,1.59819296]
[1762603880243,0.24827849,102150.0,102140.0,1.59819296]
[1762603880544,0.35193621,102150.0,102140.0,1.59819296]
[1762603884245,0.71273621,102150.0,102140.0,1.59819296]
[1762603886338,0.71273621,102150.0,102140.0,1.49453524]
[1762603886540,0.71273621,102150.0,102140.0,1.59819296]
[1762603888444,0.62452682,102150.0,102140.0,1.49453524]
[1762603888642,0.72818454,102150.0,102140.0,0.60501714]
[1762603888842,0.81551178,102150.0,102140.0,0.51854897]
[1762603889742,0.8514884,102150.0,102140.0,0.51854897]
[1762603890250,0.8514884,102150.0,102140.0,0.19178771]
[1762603890448,0.72818454,102150.0,102140.0,0.1758555]
[1762603890754,0.90395321,102150.0,102140.0,0.1758555]
[1762603890944,0.80029549,102150.0,102140.0,0.1758555]
[1762603891338,0.80029549,102150.0,102140.0,0.1972955]
[1762603891544,0.62452682,102150.0,102140.0,0.2185355]
[1762603892244,0.7467562,102150.0,102140.0,0.2185355]
[1762603893350,0.7467562,102150.0,102140.0,0.32219322]
[1762603895661,0.7467562,102150.0,102140.0,0.33504322]
[1762603897759,0.7467562,102150.0,102140.0,0.2185355]
[1762603897960,0.7467562,102150.0,102140.0,0.1758555]
[1762603898160,0.93775102,102150.0,102140.0,0.1623436]
[1762603898466,1.28321454,102150.0,102130.0,0.00014702]